[Event "Dvorkovich Memorial Rapid 2018"]
[Site "Taganrog"]
[Date "2018.01.14"]
[Round "8"]
[White "Ivlev, Aleksey"]
[Black "Yermolenko, Vasily"]
[Result "1-0"]
[ECO "A61"]
[WhiteElo "2300"]
[BlackElo "2245"]
[Annotator "ChessBase"]
[PlyCount "91"]
[EventDate "2018.??.??"]
[EventType "swiss"]
[EventCountry "RUS"]
[SourceTitle "playchess.com"]
[Source "ChessBase"]
[SourceQuality "1"]
[TimeControl "900+10"]

1. d4 {[%emt 0:00:00]} Nf6 {[%emt 0:00:00]} 2. Nf3 {[%emt 0:00:00]} e6 {[%emt 0:00:03]} 3. c4 {[%emt 0:00:00]} c5 {[%emt 0:00:04]} 4. d5 {[%emt 0:00:00]} exd5 {[%emt 0:00:01]} 5. cxd5 {[%emt 0:00:00]} d6 {[%emt 0:00:01]} 6. Nc3 {[%emt 0:00:00]} g6 {[%emt 0:00:00]} 7. Bf4 {[%emt 0:00:00]} a6 {[%emt 0:00:00]} 8. a4 {[%emt 0:00:03]} Bg7 {[%emt 0:00:02]} 9. e3 {[%emt 0:00:01]} O-O {[%emt 0:00:17]} 10. h3 {[%emt 0:00:02]} Ne8 {[%emt 0:00:23]} 11. Be2 {[%emt 0:00:00]} Nd7 {[%emt 0:00:05]} 12. O-O {[%emt 0:00:11]} h6 {[%emt 0:00:22]} 13. Bg3 {[%emt 0:00:59]} f5 {[%emt 0:00:09]} 14. Nd2 {[%emt 0:01:26]} Qe7 {[%emt 0:00:11]} 15. Nc4 {[%emt 0:00:19]} b6 {[%emt 0:01:27]} 16. Re1 {[%emt 0:00:52]} Rb8 {[%emt 0:00:00]} 17. Bf1 {[%emt 0:00:00]} Ne5 {[%emt 0:00:50]} 18. Nd2 {[%emt 0:00:10]} Nc7 {[%emt 0:01:18]} 19. f4 {[%emt 0:00:05]} Nf7 {[%emt 0:00:00]} 20. e4 {[%emt 0:00:07]} Bd4+ {[%emt 0:02:13]} 21. Kh1 {[%emt 0:00:12]} fxe4 {[%emt 0:00:00]} 22. Ndxe4 {[%emt 0:00:09]} Qd8 {[%emt 0:00:00]} 23. Bd3 {[%emt 0:00:43]} b5 {[%emt 0:00:21]} 24. axb5 {[%emt 0:00:12]} axb5 {[%emt 0:00:00]} 25. Nd2 {[%emt 0:01:31]} Bf5 {[%emt 0:02:35]} 26. Bxf5 {[%emt 0:00:31]} gxf5 {[%emt 0:00:00]} 27. Qh5 {[%emt 0:00:11]} Qf6 {[%emt 0:00:11]} 28. Bh4 {[%emt 0:00:13]} Qg7 {[%emt 0:00:21]} 29. Ra7 {[%emt 0:00:26]} b4 {[%emt 0:00:11]} 30. Ne2 {[%emt 0:01:00]} Nb5 {[%emt 0:00:00]} 31. Nxd4 {[%emt 0:00:16]} Nxd4 {[%emt 0:00:14]} 32. Nc4 {[%emt 0:01:04]} Rbe8 {[%emt 0:01:41]} 33. Rxe8 {[%emt 0:00:00]} Rxe8 {[%emt 0:00:10]} 34. Nxd6 {[%emt 0:00:17]} Nxd6 {[%emt 0:00:32]} 35. Rxg7+ {[%emt 0:00:03]} Kxg7 {[%emt 0:00:01]} 36. g4 {[%emt 0:00:37]} Re2 {[%emt 0:03:28]} 37. g5 {[%emt 0:00:13]} Nf7 {[%emt 0:00:18]} 38. gxh6+ {[%emt 0:00:35]} Nxh6 {[%emt 0:00:00]} 39. d6 {[%emt 0:00:21]} Nf7 {[%emt 0:00:55]} 40. d7 {[%emt 0:00:06]} Rxb2 {[%emt 0:01:05]} 41. Qxf7+ {[%emt 0:00:19]} Kxf7 {[%emt 0:00:02]} 42. d8=Q {[%emt 0:00:00]} Ke6 {[%emt 0:00:43]} 43. Be7 {[%emt 0:03:54]} Nf3 {[%emt 0:00:29]} 44. Qd6+ {[%emt 0:00:00]} Kf7 {[%emt 0:00:01]} 45. Qf6+ {[%emt 0:00:00]} Ke8 {[%emt 0:00:01]} 46. Qxb2 {[%emt 0:00:03]} 1-0

[Event "Dvorkovich Memorial Rapid 2018"]
[Site "Taganrog"]
[Date "2018.01.14"]
[Round "8"]
[White "Frolov, Andrey"]
[Black "Demkovich, Anatoliy"]
[Result "0-1"]
[ECO "B38"]
[WhiteElo "2120"]
[BlackElo "2407"]
[Annotator "ChessBase"]
[PlyCount "96"]
[EventDate "2018.??.??"]
[EventType "swiss"]
[EventCountry "RUS"]
[SourceTitle "playchess.com"]
[Source "ChessBase"]
[SourceQuality "1"]
[TimeControl "900+10"]

1. e4 {[%emt 0:00:00]} c5 {[%emt 0:00:11]} 2. Nf3 {[%emt 0:00:02]} g6 {[%emt 0:00:00]} 3. d4 {[%emt 0:00:03]} cxd4 {[%emt 0:00:01]} 4. Nxd4 {[%emt 0:00:01]} Bg7 {[%emt 0:00:01]} 5. c4 {[%emt 0:00:15]} Nc6 {[%emt 0:00:01]} 6. Be3 {[%emt 0:00:01]} Nf6 {[%emt 0:00:01]} 7. Nc3 {[%emt 0:00:01]} O-O {[%emt 0:00:05]} 8. Be2 {[%emt 0:00:02]} d6 {[%emt 0:00:01]} 9. O-O {[%emt 0:00:03]} Bd7 {[%emt 0:00:02]} 10. f3 {[%emt 0:00:11]} Nxd4 {[%emt 0:00:02]} 11. Bxd4 {[%emt 0:00:03]} a5 {[%emt 0:00:01]} 12. b3 {[%emt 0:00:20]} Bc6 {[%emt 0:00:01]} 13. Qd2 {[%emt 0:00:05]} Nd7 {[%emt 0:00:01]} 14. Bxg7 {[%emt 0:00:21]} Kxg7 {[%emt 0:00:01]} 15. Kh1 {[%emt 0:00:10]} Qb6 {[%emt 0:00:28]} 16. f4 {[%emt 0:01:25]} f6 {[%emt 0:00:17]} 17. Bg4 {[%emt 0:00:18]} Nc5 {[%emt 0:01:28]} 18. Qe3 {[%emt 0:01:33]} e5 {[%emt 0:01:19]} 19. Rad1 {[%emt 0:00:20]} Rad8 {[%emt 0:00:14]} 20. fxe5 {[%emt 0:01:20]} dxe5 {[%emt 0:00:22]} 21. Rxd8 {[%emt 0:01:56]} Rxd8 {[%emt 0:00:03]} 22. Nd5 {[%emt 0:00:06]} Bxd5 {[%emt 0:00:08]} 23. exd5 {[%emt 0:00:02]} a4 {[%emt 0:01:16]} 24. Bd1 {[%emt 0:00:12]} axb3 {[%emt 0:00:01]} 25. axb3 {[%emt 0:00:03]} Ra8 {[%emt 0:00:22]} 26. Bc2 {[%emt 0:00:20]} Ra2 {[%emt 0:00:28]} 27. Qc3 {[%emt 0:00:24]} Ra3 {[%emt 0:00:32]} 28. Rd1 {[%emt 0:00:31]} Nd7 {[%emt 0:01:48]} 29. d6 {[%emt 0:00:51]} Qc5 {[%emt 0:00:37]} 30. h4 {[%emt 0:00:28]} Qf2 {[%emt 0:00:42]} 31. Qh3 {[%emt 0:00:25]} f5 {[%emt 0:00:09]} 32. Be4 {[%emt 0:01:19]} Qe2 {[%emt 0:00:50]} 33. Bf3 {[%emt 0:03:42]} Qc2 {[%emt 0:00:37]} 34. Qg3 {[%emt 0:00:16]} Ra8 {[%emt 0:04:20]} 35. Qg5 {[%emt 0:00:27]} Re8 {[%emt 0:00:02]} 36. Qe3 {[%emt 0:00:40]} e4 {[%emt 0:00:43]} 37. Be2 {[%emt 0:00:36]} Re5 {[%emt 0:00:34]} 38. Rc1 {[%emt 0:00:14]} Qb2 {[%emt 0:00:05]} 39. c5 {[%emt 0:00:15]} f4 {[%emt 0:00:07]} 40. Qxf4 {[%emt 0:00:22]} Qxe2 {[%emt 0:00:02]} 41. c6 {[%emt 0:00:45]} bxc6 {[%emt 0:00:01]} 42. Rxc6 {[%emt 0:00:01]} Rf5 {[%emt 0:00:40]} 43. Qg3 {[%emt 0:00:09]} Qf2 {[%emt 0:00:59]} 44. Qc3+ {[%emt 0:00:54]} Kh6 {[%emt 0:00:04]} 45. Rc7 {[%emt 0:00:21]} Qxh4+ {[%emt 0:00:21]} 46. Kg1 {[%emt 0:00:00]} Qf2+ {[%emt 0:00:02]} 47. Kh2 {[%emt 0:00:01]} Rh5+ {[%emt 0:00:02]} 48. Qh3 {[%emt 0:00:05]} Rxh3+ {[%emt 0:00:01]} 0-1

[Event "Dvorkovich Memorial Rapid 2018"]
[Site "Taganrog"]
[Date "2018.01.14"]
[Round "9"]
[White "Anikonov, Dmitry"]
[Black "Semenova, Elena"]
[Result "1/2-1/2"]
[ECO "E12"]
[WhiteElo "2407"]
[BlackElo "2238"]
[Annotator "ChessBase"]
[PlyCount "161"]
[EventDate "2018.??.??"]
[EventType "swiss"]
[EventCountry "RUS"]
[SourceTitle "playchess.com"]
[Source "ChessBase"]
[SourceQuality "1"]
[TimeControl "900+10"]

1. d4 {[%emt 0:00:00]} Nf6 {[%emt 0:00:01]} 2. c4 {[%emt 0:00:00]} e6 {[%emt 0:00:04]} 3. Nf3 {[%emt 0:00:07]} b6 {[%emt 0:00:00]} 4. a3 {[%emt 0:00:00]} Bb7 {[%emt 0:00:32]} 5. Nc3 {[%emt 0:00:00]} Be7 {[%emt 0:00:00]} 6. d5 {[%emt 0:00:00]} exd5 {[%emt 0:00:27]} 7. cxd5 {[%emt 0:00:00]} O-O {[%emt 0:00:02]} 8. g3 {[%emt 0:00:24]} Re8 {[%emt 0:00:28]} 9. Bg2 {[%emt 0:00:05]} c6 {[%emt 0:00:18]} 10. Nd4 {[%emt 0:01:29]} Nxd5 {[%emt 0:00:50]} 11. Nxd5 {[%emt 0:00:07]} cxd5 {[%emt 0:00:02]} 12. O-O {[%emt 0:00:02]} Na6 {[%emt 0:00:13]} 13. Nf5 {[%emt 0:01:24]} Nc5 {[%emt 0:01:04]} 14. b4 {[%emt 0:02:57]} Ne4 {[%emt 0:00:34]} 15. Nxe7+ {[%emt 0:00:12]} Qxe7 {[%emt 0:00:05]} 16. Bb2 {[%emt 0:00:06]} Rac8 {[%emt 0:00:29]} 17. e3 {[%emt 0:01:01]} Rc4 {[%emt 0:00:37]} 18. Rc1 {[%emt 0:02:21]} Rec8 {[%emt 0:00:22]} 19. Qe2 {[%emt 0:01:46]} a5 {[%emt 0:01:34]} 20. bxa5 {[%emt 0:00:31]} bxa5 {[%emt 0:00:04]} 21. Rfd1 {[%emt 0:00:51]} d6 {[%emt 0:01:54]} 22. Bh3 {[%emt 0:01:23]} Rxc1 {[%emt 0:00:40]} 23. Rxc1 {[%emt 0:00:11]} Rxc1+ {[%emt 0:00:34]} 24. Bxc1 {[%emt 0:00:00]} Nc3 {[%emt 0:00:28]} 25. Qd3 {[%emt 0:01:14]} Qe4 {[%emt 0:01:56]} 26. Qxe4 {[%emt 0:01:14]} dxe4 {[%emt 0:00:02]} 27. Bd2 {[%emt 0:00:31]} Nb1 {[%emt 0:00:36]} 28. Bc1 {[%emt 0:00:15]} Ba6 {[%emt 0:01:02]} 29. Bd7 {[%emt 0:00:31]} Kf8 {[%emt 0:00:19]} 30. Bc6 {[%emt 0:00:07]} Bd3 {[%emt 0:00:08]} 31. Bb2 {[%emt 0:00:12]} Ke7 {[%emt 0:01:51]} 32. a4 {[%emt 0:00:01]} f6 {[%emt 0:00:11]} 33. Bd4 {[%emt 0:00:29]} Nd2 {[%emt 0:00:59]} 34. Bc3 {[%emt 0:00:06]} Nb3 {[%emt 0:01:02]} 35. Bd5 {[%emt 0:00:20]} Nc5 {[%emt 0:00:15]} 36. Bxa5 {[%emt 0:00:17]} Nxa4 {[%emt 0:00:14]} 37. f3 {[%emt 0:00:07]} exf3 {[%emt 0:00:18]} 38. Bxf3 {[%emt 0:00:02]} Ke6 {[%emt 0:00:03]} 39. Kf2 {[%emt 0:00:16]} Nc5 {[%emt 0:00:02]} 40. Bc3 {[%emt 0:00:15]} Be4 {[%emt 0:00:00]} 41. Bg4+ {[%emt 0:00:12]} f5 {[%emt 0:00:08]} 42. Be2 {[%emt 0:00:08]} g6 {[%emt 0:00:14]} 43. Bd4 {[%emt 0:00:13]} Bd5 {[%emt 0:00:02]} 44. Bb5 {[%emt 0:00:23]} Ne4+ {[%emt 0:00:18]} 45. Ke2 {[%emt 0:00:04]} Nf6 {[%emt 0:00:05]} 46. Bd3 {[%emt 0:00:24]} Ng4 {[%emt 0:00:14]} 47. h3 {[%emt 0:00:04]} Ne5 {[%emt 0:00:08]} 48. Ba6 {[%emt 0:00:23]} Bc6 {[%emt 0:00:41]} 49. Bxe5 {[%emt 0:00:10]} Kxe5 {[%emt 0:00:23]} 50. h4 {[%emt 0:00:03]} Bd5 {[%emt 0:00:19]} 51. Kf2 {[%emt 0:00:06]} Bb3 {[%emt 0:00:04]} 52. Bd3 {[%emt 0:00:03]} d5 {[%emt 0:00:03]} 53. Bb1 {[%emt 0:00:04]} Bc4 {[%emt 0:00:01]} 54. Bc2 {[%emt 0:00:03]} Bb5 {[%emt 0:00:26]} 55. Bb1 {[%emt 0:00:01]} Ba4 {[%emt 0:00:04]} 56. Bd3 {[%emt 0:00:02]} Bd1 {[%emt 0:00:18]} 57. Bb5 {[%emt 0:00:08]} Ke4 {[%emt 0:00:23]} 58. Be8 {[%emt 0:00:06]} Bh5 {[%emt 0:00:08]} 59. Bf7 {[%emt 0:00:08]} Bg4 {[%emt 0:00:11]} 60. Bg8 {[%emt 0:00:05]} h6 {[%emt 0:00:06]} 61. Bf7 {[%emt 0:00:03]} g5 {[%emt 0:00:01]} 62. hxg5 {[%emt 0:00:03]} hxg5 {[%emt 0:00:00]} 63. Be8 {[%emt 0:00:20]} Bd1 {[%emt 0:00:19]} 64. Bc6 {[%emt 0:00:09]} Ke5 {[%emt 0:00:01]} 65. Bd7 {[%emt 0:00:04]} Bc2 {[%emt 0:00:02]} 66. Bc6 {[%emt 0:00:05]} Be4 {[%emt 0:00:02]} 67. Be8 {[%emt 0:00:00]} Kd6 {[%emt 0:00:14]} 68. Bb5 {[%emt 0:00:11]} Kc5 {[%emt 0:00:02]} 69. Ba6 {[%emt 0:00:25]} Kb4 {[%emt 0:00:02]} 70. Ke2 {[%emt 0:00:09]} Kc3 {[%emt 0:00:05]} 71. Bb5 {[%emt 0:00:18]} Bc2 {[%emt 0:00:17]} 72. Ba6 {[%emt 0:00:16]} Bb3 {[%emt 0:00:20]} 73. Bc8 {[%emt 0:00:02]} Bc4+ {[%emt 0:00:27]} 74. Kf2 {[%emt 0:00:02]} Bd3 {[%emt 0:00:07]} 75. Ke1 {[%emt 0:00:01]} Be4 {[%emt 0:00:12]} 76. Ke2 {[%emt 0:00:03]} Kc2 {[%emt 0:00:24]} 77. Be6 {[%emt 0:00:08]} Kc3 {[%emt 0:00:12]} 78. Bc8 {[%emt 0:00:08]} Bd3+ {[%emt 0:00:11]} 79. Ke1 {[%emt 0:00:03]} Be4 {[%emt 0:00:01]} 80. Ke2 {[%emt 0:00:02]} Bd3+ {[%emt 0:00:03]} 81. Ke1 {[%emt 0:00:01]} 1/2-1/2

[Event "Dvorkovich Memorial Rapid 2018"]
[Site "Taganrog"]
[Date "2018.01.14"]
[Round "9"]
[White "Demkovich, Anatoliy"]
[Black "Kotenko, Pavel"]
[Result "1-0"]
[ECO "C26"]
[WhiteElo "2407"]
[BlackElo "2403"]
[Annotator "ChessBase"]
[PlyCount "78"]
[EventDate "2018.??.??"]
[EventType "swiss"]
[EventCountry "RUS"]
[SourceTitle "playchess.com"]
[Source "ChessBase"]
[SourceQuality "1"]
[TimeControl "900+10"]

1. e4 {[%emt 0:00:00]} e5 {[%emt 0:00:03]} 2. Nf3 {[%emt 0:00:00]} Nc6 {[%emt 0:00:02]} 3. Nc3 {[%emt 0:00:00]} Nf6 {[%emt 0:00:02]} 4. g3 {[%emt 0:00:00]} Bc5 {[%emt 0:00:34]} 5. Bg2 {[%emt 0:00:00]} d6 {[%emt 0:00:25]} 6. d3 {[%emt 0:00:00]} a6 {[%emt 0:00:20]} 7. Be3 {[%emt 0:00:00]} O-O {[%emt 0:01:37]} 8. O-O {[%emt 0:00:59]} Be6 {[%emt 0:01:30]} 9. d4 {[%emt 0:00:24]} exd4 {[%emt 0:00:25]} 10. Nxd4 {[%emt 0:00:02]} Nxd4 {[%emt 0:00:36]} 11. Bxd4 {[%emt 0:00:00]} Bxd4 {[%emt 0:00:39]} 12. Qxd4 {[%emt 0:00:00]} Nd7 {[%emt 0:00:33]} 13. Rad1 {[%emt 0:00:19]} Qf6 {[%emt 0:00:19]} 14. f4 {[%emt 0:02:28]} Qxd4+ {[%emt 0:01:38]} 15. Rxd4 {[%emt 0:00:00]} f6 {[%emt 0:00:35]} 16. Nd5 {[%emt 0:00:00]} Bxd5 {[%emt 0:00:21]} 17. exd5 {[%emt 0:00:00]} a5 {[%emt 0:01:00]} 18. a3 {[%emt 0:00:43]} Rfe8 {[%emt 0:00:24]} 19. Kf2 {[%emt 0:00:02]} g6 {[%emt 0:00:34]} 20. Re1 {[%emt 0:00:00]} Rxe1 {[%emt 0:00:17]} 21. Kxe1 {[%emt 0:00:04]} Kf7 {[%emt 0:00:22]} 22. Rc4 {[%emt 0:00:31]} Rc8 {[%emt 0:00:13]} 23. Kd2 {[%emt 0:00:35]} f5 {[%emt 0:00:15]} 24. Bf3 {[%emt 0:00:02]} Nf6 {[%emt 0:00:17]} 25. Kd3 {[%emt 0:01:16]} Ke7 {[%emt 0:00:00]} 26. Kd4 {[%emt 0:01:05]} Kd7 {[%emt 0:00:10]} 27. Ra4 {[%emt 0:01:03]} b6 {[%emt 0:00:14]} 28. Be2 {[%emt 0:00:14]} h5 {[%emt 0:01:02]} 29. b4 {[%emt 0:00:15]} axb4 {[%emt 0:00:15]} 30. axb4 {[%emt 0:00:00]} h4 {[%emt 0:00:36]} 31. Ba6 {[%emt 0:02:27]} Rh8 {[%emt 0:02:10]} 32. Bb5+ {[%emt 0:00:05]} Ke7 {[%emt 0:00:04]} 33. Ra7 {[%emt 0:00:38]} hxg3 {[%emt 0:00:00]} 34. hxg3 {[%emt 0:00:01]} Rh3 {[%emt 0:01:13]} 35. Rxc7+ {[%emt 0:00:02]} Kf8 {[%emt 0:00:49]} 36. Rc6 {[%emt 0:00:30]} Ne4 {[%emt 0:00:22]} 37. Bd3 {[%emt 0:00:24]} Rxg3 {[%emt 0:00:15]} 38. Bxe4 {[%emt 0:00:05]} fxe4 {[%emt 0:00:10]} 39. Kxe4 {[%emt 0:00:01]} Kg7 {[%emt 0:00:07]} 1-0

[Event "Dvorkovich Memorial Rapid 2018"]
[Site "Taganrog"]
[Date "2018.01.14"]
[Round "9"]
[White "Tunik, Gennady"]
[Black "Sipetin, Vladislav"]
[Result "1-0"]
[ECO "E18"]
[WhiteElo "2378"]
[BlackElo "2263"]
[Annotator "ChessBase"]
[PlyCount "113"]
[EventDate "2018.??.??"]
[EventType "swiss"]
[EventCountry "RUS"]
[SourceTitle "playchess.com"]
[Source "ChessBase"]
[SourceQuality "1"]
[TimeControl "900+10"]

1. d4 {[%emt 0:00:00]} Nf6 {[%emt 0:00:02]} 2. c4 {[%emt 0:00:00]} e6 {[%emt 0:00:00]} 3. Nf3 {[%emt 0:00:00]} b6 {[%emt 0:00:00]} 4. g3 {[%emt 0:00:00]} Bb7 {[%emt 0:00:00]} 5. Bg2 {[%emt 0:00:00]} Be7 {[%emt 0:00:12]} 6. O-O {[%emt 0:00:00]} O-O {[%emt 0:00:00]} 7. Nc3 {[%emt 0:00:00]} Ne4 {[%emt 0:00:40]} 8. Bd2 {[%emt 0:00:00]} Nxc3 {[%emt 0:00:52]} 9. Bxc3 {[%emt 0:00:09]} d5 {[%emt 0:00:10]} 10. cxd5 {[%emt 0:00:07]} exd5 {[%emt 0:00:33]} 11. b4 {[%emt 0:00:00]} c6 {[%emt 0:03:53]} 12. Ne5 {[%emt 0:00:26]} Nd7 {[%emt 0:00:04]} 13. Nd3 {[%emt 0:00:03]} Nf6 {[%emt 0:01:13]} 14. a4 {[%emt 0:01:26]} Ne4 {[%emt 0:00:16]} 15. Qb3 {[%emt 0:00:36]} Qd6 {[%emt 0:01:52]} 16. Rfc1 {[%emt 0:00:58]} Rac8 {[%emt 0:00:44]} 17. Be1 {[%emt 0:00:08]} Qf6 {[%emt 0:00:47]} 18. e3 {[%emt 0:00:13]} Bd6 {[%emt 0:00:12]} 19. a5 {[%emt 0:01:35]} Rfe8 {[%emt 0:00:38]} 20. axb6 {[%emt 0:00:06]} axb6 {[%emt 0:00:03]} 21. Ra7 {[%emt 0:00:12]} Rb8 {[%emt 0:00:32]} 22. b5 {[%emt 0:00:22]} c5 {[%emt 0:01:05]} 23. dxc5 {[%emt 0:00:45]} Nxc5 {[%emt 0:01:06]} 24. Nxc5 {[%emt 0:00:08]} Bxc5 {[%emt 0:00:12]} 25. Bb4 {[%emt 0:01:32]} Qd6 {[%emt 0:01:08]} 26. Rb1 {[%emt 0:00:48]} h6 {[%emt 0:00:45]} 27. Bf3 {[%emt 0:00:46]} Red8 {[%emt 0:00:31]} 28. Kg2 {[%emt 0:00:12]} Ba8 {[%emt 0:00:26]} 29. Bc3 {[%emt 0:00:18]} Rb7 {[%emt 0:00:30]} 30. Rba1 {[%emt 0:00:43]} Rxa7 {[%emt 0:00:04]} 31. Rxa7 {[%emt 0:00:00]} Qb8 {[%emt 0:00:18]} 32. Ra4 {[%emt 0:00:12]} Bb7 {[%emt 0:00:30]} 33. Bd4 {[%emt 0:00:26]} Qd6 {[%emt 0:00:16]} 34. Qd3 {[%emt 0:00:09]} Ra8 {[%emt 0:00:01]} 35. Rxa8+ {[%emt 0:00:14]} Bxa8 {[%emt 0:00:01]} 36. Bd1 {[%emt 0:00:39]} Bb7 {[%emt 0:00:12]} 37. Bc2 {[%emt 0:00:00]} Bxd4 {[%emt 0:00:24]} 38. Qh7+ {[%emt 0:00:33]} Kf8 {[%emt 0:00:02]} 39. exd4 {[%emt 0:00:01]} Qc7 {[%emt 0:01:05]} 40. Bd1 {[%emt 0:00:05]} Qc4 {[%emt 0:00:15]} 41. Qh8+ {[%emt 0:00:35]} Ke7 {[%emt 0:00:02]} 42. Qb8 {[%emt 0:00:17]} Qc8 {[%emt 0:00:02]} 43. Qe5+ {[%emt 0:00:04]} Kf8 {[%emt 0:00:01]} 44. Qd6+ {[%emt 0:00:02]} Kg8 {[%emt 0:00:06]} 45. Qxb6 {[%emt 0:00:01]} Qd7 {[%emt 0:00:25]} 46. Bf3 {[%emt 0:00:09]} g6 {[%emt 0:00:05]} 47. Qc5 {[%emt 0:00:30]} h5 {[%emt 0:00:05]} 48. h4 {[%emt 0:00:02]} Kg7 {[%emt 0:00:04]} 49. b6 {[%emt 0:00:00]} Qc6 {[%emt 0:00:14]} 50. Qxc6 {[%emt 0:00:22]} Bxc6 {[%emt 0:00:00]} 51. Be2 {[%emt 0:00:01]} Bb7 {[%emt 0:00:06]} 52. Kf3 {[%emt 0:00:02]} f6 {[%emt 0:00:06]} 53. Kf4 {[%emt 0:00:03]} Kf7 {[%emt 0:00:04]} 54. f3 {[%emt 0:00:01]} Ke6 {[%emt 0:00:09]} 55. g4 {[%emt 0:00:04]} Kf7 {[%emt 0:00:18]} 56. gxh5 {[%emt 0:00:05]} gxh5 {[%emt 0:00:02]} 57. Bb5 {[%emt 0:00:14]} 1-0

[Event "Dvorkovich Memorial Rapid 2018"]
[Site "Taganrog"]
[Date "2018.01.14"]
[Round "9"]
[White "Tsoi, Dmitry"]
[Black "Mirzoyan, Mikhail"]
[Result "1/2-1/2"]
[ECO "A11"]
[WhiteElo "2371"]
[BlackElo "2275"]
[Annotator "ChessBase"]
[PlyCount "114"]
[EventDate "2018.??.??"]
[EventType "swiss"]
[EventCountry "RUS"]
[SourceTitle "playchess.com"]
[Source "ChessBase"]
[SourceQuality "1"]
[TimeControl "900+10"]

1. c4 {[%emt 0:15:00]} c6 {[%emt 0:15:10]} 2. Nf3 {[%emt 0:00:10]} d5 {[%emt 0:00:10]} 3. Qc2 {[%emt 0:00:10]} Nf6 {[%emt 0:00:10]} 4. e3 {[%emt 0:00:00]} Bg4 {[%emt 0:00:10]} 5. Ne5 {[%emt 0:00:20]} Bh5 {[%emt 0:00:10]} 6. cxd5 {[%emt 0:00:10]} Qxd5 {[%emt 0:00:10]} 7. f4 {[%emt 0:00:10]} e6 {[%emt 0:00:10]} 8. Nc3 {[%emt 0:00:10]} Qd8 {[%emt 0:00:10]} 9. b3 {[%emt 0:00:10]} Nbd7 {[%emt 0:00:10]} 10. d4 {[%emt 0:00:10]} Nxe5 {[%emt 0:00:10]} 11. fxe5 {[%emt 0:00:10]} Bg6 {[%emt 0:00:10]} 12. Bd3 {[%emt 0:00:10]} Nd5 {[%emt 0:00:10]} 13. Nxd5 {[%emt 0:00:10]} Qxd5 {[%emt 0:00:10]} 14. Bxg6 {[%emt 0:00:10]} hxg6 {[%emt 0:00:10]} 15. O-O {[%emt 0:00:10]} Be7 {[%emt 0:00:10]} 16. Qc4 {[%emt 0:00:10]} f6 {[%emt 0:00:10]} 17. Qxd5 {[%emt 0:00:10]} cxd5 {[%emt 0:00:10]} 18. Bb2 {[%emt 0:00:10]} Rc8 {[%emt 0:00:10]} 19. Rac1 {[%emt 0:00:10]} Kd7 {[%emt 0:00:10]} 20. Rxc8 {[%emt 0:00:10]} Rxc8 {[%emt 0:00:10]} 21. Rf2 {[%emt 0:00:10]} f5 {[%emt 0:00:10]} 22. Kf1 {[%emt 0:00:10]} Bg5 {[%emt 0:00:10]} 23. Re2 {[%emt 0:00:10]} Be7 {[%emt 0:00:10]} 24. Ke1 {[%emt 0:00:10]} g5 {[%emt 0:00:10]} 25. h3 {[%emt 0:00:10]} Rh8 {[%emt 0:00:10]} 26. Kd1 {[%emt 0:00:10]} Rh4 {[%emt 0:00:10]} 27. Bc3 {[%emt 0:00:10]} Re4 {[%emt 0:00:10]} 28. Kc2 {[%emt 0:00:10]} g4 {[%emt 0:00:10]} 29. hxg4 {[%emt 0:00:10]} Rxg4 {[%emt 0:00:10]} 30. Kd3 {[%emt 0:00:10]} Bg5 {[%emt 0:00:10]} 31. Be1 {[%emt 0:00:10]} Be7 {[%emt 0:00:10]} 32. g3 {[%emt 0:00:10]} Rg6 {[%emt 0:00:10]} 33. b4 {[%emt 0:00:10]} Rh6 {[%emt 0:00:10]} 34. g4 {[%emt 0:00:10]} Rh3 {[%emt 0:00:10]} 35. gxf5 {[%emt 0:00:10]} exf5 {[%emt 0:00:10]} 36. Rf2 {[%emt 0:00:10]} Ke6 {[%emt 0:00:10]} 37. Ke2 {[%emt 0:00:10]} g5 {[%emt 0:00:10]} 38. Bd2 {[%emt 0:00:10]} g4 {[%emt 0:00:10]} 39. b5 {[%emt 0:00:10]} Bh4 {[%emt 0:00:10]} 40. Rg2 {[%emt 0:00:10]} Rh1 {[%emt 0:00:10]} 41. a4 {[%emt 0:00:10]} Kf7 {[%emt 0:00:10]} 42. e4 {[%emt 0:00:10]} dxe4 {[%emt 0:00:10]} 43. d5 {[%emt 0:00:10]} g3 {[%emt 0:00:10]} 44. e6+ {[%emt 0:00:10]} Kf6 {[%emt 0:00:10]} 45. Bc3+ {[%emt 0:00:10]} Ke7 {[%emt 0:00:10]} 46. Be5 {[%emt 0:00:10]} Rc1 {[%emt 0:00:10]} 47. Bxg3 {[%emt 0:00:10]} Rc2+ {[%emt 0:00:10]} 48. Kf1 {[%emt 0:00:10]} Rc1+ {[%emt 0:00:10]} 49. Ke2 {[%emt 0:00:10]} Rc2+ {[%emt 0:00:10]} 50. Kf1 {[%emt 0:00:10]} Rc1+ {[%emt 0:00:10]} 51. Kf2 {[%emt 0:00:10]} Rc2+ {[%emt 0:00:10]} 52. Kg1 {[%emt 0:00:10]} Rxg2+ {[%emt 0:00:10]} 53. Kxg2 {[%emt 0:00:10]} Bxg3 {[%emt 0:00:10]} 54. Kxg3 {[%emt 0:00:10]} Kd6 {[%emt 0:00:10]} 55. Kf4 {[%emt 0:00:10]} Ke7 {[%emt 0:00:10]} 56. a5 {[%emt 0:00:10]} Kd6 {[%emt 0:00:10]} 57. Ke3 {[%emt 0:00:10]} b6 {[%emt 0:00:10]} 1/2-1/2

[Event "Dvorkovich Memorial Rapid 2018"]
[Site "Taganrog"]
[Date "2018.01.14"]
[Round "9"]
[White "Kamenets, Anatolij"]
[Black "Tyurin, Artem"]
[Result "0-1"]
[ECO "D70"]
[WhiteElo "2294"]
[BlackElo "1820"]
[Annotator "ChessBase"]
[PlyCount "61"]
[EventDate "2018.??.??"]
[EventType "swiss"]
[EventCountry "RUS"]
[SourceTitle "playchess.com"]
[Source "ChessBase"]
[SourceQuality "1"]
[TimeControl "900+10"]

1. d4 {[%emt 0:00:00]} Nf6 {[%emt 0:00:00]} 2. c4 {[%emt 0:00:00]} g6 {[%emt 0:00:00]} 3. f3 {[%emt 0:00:00]} d5 {[%emt 0:00:00]} 4. cxd5 {[%emt 0:00:00]} Nxd5 {[%emt 0:00:04]} 5. e4 {[%emt 0:00:00]} Nb6 {[%emt 0:00:01]} 6. Nc3 {[%emt 0:00:00]} Bg7 {[%emt 0:00:23]} 7. Be3 {[%emt 0:00:00]} O-O {[%emt 0:00:00]} 8. Qd2 {[%emt 0:00:00]} Nc6 {[%emt 0:00:00]} 9. Rd1 {[%emt 0:00:00]} e5 {[%emt 0:01:02]} 10. d5 {[%emt 0:00:13]} Nd4 {[%emt 0:00:15]} 11. Nb5 {[%emt 0:00:07]} Re8 {[%emt 0:01:05]} 12. Nxd4 {[%emt 0:10:31]} exd4 {[%emt 0:00:13]} 13. Bxd4 {[%emt 0:00:03]} Qxd5 {[%emt 0:00:18]} 14. Bxg7 {[%emt 0:00:15]} Qxd2+ {[%emt 0:00:00]} 15. Rxd2 {[%emt 0:00:00]} Kxg7 {[%emt 0:00:06]} 16. Bd3 {[%emt 0:02:59]} Be6 {[%emt 0:01:01]} 17. b3 {[%emt 0:00:03]} c5 {[%emt 0:03:36]} 18. Ne2 {[%emt 0:00:27]} Rad8 {[%emt 0:00:22]} 19. Nf4 {[%emt 0:00:35]} g5 {[%emt 0:04:06]} 20. Nxe6+ {[%emt 0:01:19]} Rxe6 {[%emt 0:00:04]} 21. Bc2 {[%emt 0:01:01]} Red6 {[%emt 0:00:21]} 22. Rxd6 {[%emt 0:00:00]} Rxd6 {[%emt 0:00:10]} 23. Ke2 {[%emt 0:00:04]} c4 {[%emt 0:02:42]} 24. Rc1 {[%emt 0:00:10]} Rc6 {[%emt 0:00:34]} 25. b4 {[%emt 0:00:00]} Kf6 {[%emt 0:01:18]} 26. Ke3 {[%emt 0:00:05]} Re6 {[%emt 0:00:26]} 27. Bd1 {[%emt 0:00:16]} Nd5+ {[%emt 0:00:13]} 28. Kf2 {[%emt 0:01:16]} Nxb4 {[%emt 0:00:04]} 29. Rxc4 {[%emt 0:00:02]} Rd6 {[%emt 0:01:00]} 30. Bb3 {[%emt 0:00:07]} Nd3+ {[%emt 0:00:08]} 31. Kg3 {[%emt 0:00:27]} 0-1